bitfinex-derivatives/quotes_ETHF0:USTF0_20251210
["timestamp","ask_amount","ask_price","bid_price","bid_amount"]
[1765377325461,3.21230586,3325.2,3323.7,1.6246]
[1765377325462,3.2078,3324.8,3323.9,3.2078]
[1765377325662,0.00450586,3325.2,3323.5,3.2078]
[1765377325663,3.2078,3324.2,3323.5,3.2078]
[1765377326064,3.2078,3324.6,3323.7,1.7196]
[1765377326269,3.2078,3324.2,3323.7,1.7196]
[1765377326470,3.2099134,3324.2,3323.7,1.72322013]
[1765377326670,3.2099134,3324.2,3323.7,0.00362013]
[1765377328168,3.2078,3323.8,3322.6,3.2078]
[1765377328374,3.2078,3323.1,3322.6,3.2078]
[1765377328672,3.21231291,3323.5,3323.3,0.15047]
[1765377329076,3.21231291,3323.5,3322.8,1.5147]
[1765377329272,0.00451291,3323.5,3323.3,0.15046]
[1765377329575,3.2078,3324.0,3323.7,1.66514]
[1765377329971,3.2078,3324.0,3323.1,0.00451291]
[1765377330367,0.0021134,3324.2,3323.7,1.66515]
[1765377330675,3.2078,3323.8,3323.1,0.00451291]
[1765377330974,3.2078,3323.2,3323.1,0.00451291]
[1765377334978,3.94425219,3323.2,3321.8,3.2078]
[1765377335181,3.2078,3322.6,3321.8,3.35833]
[1765377335478,3.2078,3322.6,3321.9,1.87013]
[1765377335870,3.2078,3322.6,3322.0,0.15052]
[1765377335871,3.21231291,3322.6,3322.0,0.15052]
[1765377336676,3.21231291,3322.6,3321.9,1.72183651]
[1765377336677,3.21231291,3322.6,3322.4,1.5147]
[1765377337277,0.00451291,3322.6,3322.4,1.5147]
[1765377337677,0.00451291,3322.6,3322.3,3.35831]
[1765377338177,3.21231291,3322.6,3321.9,1.72183651]
[1765377339577,3.21231291,3322.6,3322.0,0.15052]
[1765377340186,0.00451291,3322.6,3322.0,0.15052]
[1765377340788,3.21231291,3322.6,3322.0,0.15052]
[1765377340986,0.00451291,3322.6,3322.0,0.15052]
[1765377341874,3.2078,3322.2,3321.9,0.00223651]
[1765377342080,0.73646899,3322.1,3321.3,0.15056]
[1765377342280,3.2078,3321.8,3321.3,0.15056]
[1765377342986,3.21100476,3321.8,3321.3,0.152733]
[1765377343488,0.00320476,3321.8,3321.5,4.7225]
[1765377343684,0.00320476,3321.8,3321.7,0.15054]
[1765377343876,0.74144069,3322.6,3322.4,0.15051]
[1765377344077,0.00451291,3322.6,3322.4,0.15051]
[1765377344277,0.00451291,3322.6,3322.1,3.2078]
[1765377344477,0.00451291,3322.6,3321.9,0.15053]
[1765377344877,3.2078,3322.5,3321.9,0.15053]
[1765377345086,0.73733707,3322.4,3321.9,0.15053]
[1765377345781,0.73733707,3322.4,3321.5,1.5147]
[1765377345782,3.2078,3322.1,3321.5,1.5147]
[1765377345988,0.73733707,3322.0,3321.5,1.5147]
[1765377346684,0.73733707,3322.0,3321.3,3.360533]
[1765377346685,0.73733707,3322.0,3321.3,3.209973]
[1765377347186,3.2078,3322.1,3321.3,3.209973]
[1765377347187,0.73733707,3321.9,3321.3,3.209973]
[1765377347388,0.73733707,3321.8,3321.3,3.209973]
[1765377347585,0.73733707,3321.7,3321.3,3.209973]
[1765377347780,0.73733707,3321.6,3321.3,3.209973]
[1765377347984,3.21497245,3322.6,3321.8,0.15053]
[1765377348181,3.21497245,3322.6,3322.5,0.1505]
[1765377348381,0.00717245,3322.6,3321.8,3.35833]
[1765377348582,0.00717245,3322.6,3321.5,1.5147]
[1765377348583,1.60726654,3322.6,3321.5,1.66525]
[1765377348786,0.00717245,3322.6,3322.0,3.2078]
[1765377349186,0.00717245,3322.6,3322.2,0.15052]
[1765377349388,0.00717245,3322.6,3322.0,3.2078]
[1765377349781,0.00717245,3322.6,3321.9,3.2078]
[1765377349986,0.00717245,3322.6,3321.9,3.35833]
[1765377350186,0.00717245,3322.6,3322.2,0.15051]
[1765377350792,0.00717245,3322.6,3322.2,1.66521]
[1765377351891,3.2078,3322.4,3321.9,3.2078]
[1765377352193,1.60009409,3322.3,3321.5,1.66525]
[1765377352594,1.60009409,3322.3,3321.4,3.2078]
[1765377352793,1.60009409,3322.1,3321.4,3.2078]
[1765377353187,1.60009409,3322.0,3321.4,3.2078]
[1765377353384,4.80789409,3322.0,3321.4,3.2078]
[1765377353584,4.80789409,3322.0,3321.5,1.5147]
[1765377353989,3.2078,3322.0,3321.4,0.15055]
[1765377354190,1.60009409,3321.8,3321.3,0.002173]
[1765377355191,1.60009409,3321.7,3321.3,0.002173]
[1765377356905,3.2078,3321.6,3321.3,0.002173]
[1765377357103,1.60009409,3321.6,3321.3,0.152733]
[1765377357295,1.60009409,3321.8,3321.3,0.152733]
[1765377357800,1.60009409,3321.8,3321.3,0.002173]
[1765377357998,4.80789409,3321.5,3321.3,0.002173]
[1765377358296,4.80789409,3321.5,3320.6,3.2078]
[1765377358297,6.25479409,3321.5,3320.6,3.2078]
[1765377358594,1.60009409,3321.0,3320.2,3.35841]
[1765377358795,3.2078,3321.1,3320.2,3.2078]
[1765377358796,1.604607,3320.9,3320.2,3.2078]
[1765377358998,1.60009409,3320.7,3320.2,3.2078]
[1765377359197,1.60009409,3320.8,3320.2,3.2078]
[1765377359397,1.60009409,3320.7,3320.2,3.21131102]
[1765377359795,0.00451291,3320.9,3320.2,3.21131102]
[1765377359796,1.60009409,3320.6,3320.2,3.36191102]
[1765377359996,0.73897936,3320.5,3320.2,3.36191102]
[1765377360298,0.73897936,3320.4,3320.2,0.00351102]
[1765377360494,0.73897936,3320.3,3319.8,3.2078]
[1765377360694,3.2078,3320.0,3319.4,3.2078]
[1765377360900,1.61013385,3319.8,3319.4,3.2078]
[1765377361101,0.73609846,3319.7,3319.4,4.5972]
[1765377361401,2.66779153,3320.7,3319.4,4.5972]
[1765377361402,1.61013385,3320.5,3320.1,1.3894]
[1765377361604,0.00323641,3320.5,3320.1,4.59939594]
[1765377361795,0.00323641,3320.5,3320.4,0.1506]
[1765377362295,0.00323641,3320.5,3320.1,3.20999594]
[1765377362497,0.00323641,3320.5,3320.1,0.00219594]
[1765377362699,0.00323641,3320.5,3320.2,3.35841]
[1765377362897,0.00323641,3320.5,3320.2,3.2078]
[1765377363299,0.00323641,3320.5,3320.1,1.39159594]
[1765377363604,0.00323641,3320.5,3320.1,0.00219594]
[1765377364300,7.9878,3320.2,3320.1,0.00219594]
[1765377364603,7.9878,3320.2,3319.7,3.2078]
[1765377364604,3.2078,3320.2,3319.7,3.2078]
[1765377364804,3.2078,3320.2,3320.1,2.3562]
[1765377365098,0.00323641,3320.5,3320.1,2.3562]
[1765377365099,0.00323641,3320.5,3320.4,4.8204]
[1765377365292,0.00323641,3320.5,3320.4,4.971]
[1765377365493,0.00323641,3320.5,3320.4,4.97320711]
[1765377365698,3.2078,3321.5,3320.8,1.3894]
[1765377365897,3.2078,3321.5,3320.7,3.35838]
[1765377366091,3.2078,3321.5,3320.7,3.2078]
[1765377366293,3.2078,3321.1,3320.4,0.00220711]
[1765377366697,3.2078,3320.7,3320.4,0.00220711]
[1765377368393,0.00805468,3320.9,3320.5,3.2078]
[1765377368594,0.00805468,3320.9,3320.8,1.3407]
[1765377368795,0.00805468,3320.9,3320.8,6.36948]
[1765377369303,0.00805468,3320.9,3320.5,3.2078]
[1765377369892,0.00805468,3320.9,3320.8,6.2189]
[1765377370302,0.00805468,3320.9,3320.4,0.00220711]
[1765377370303,4.6224,3320.5,3320.4,0.00220711]
[1765377370500,3.2078,3320.5,3318.8,3.2078]
[1765377370707,3.2078,3319.7,3318.8,3.2078]
[1765377371605,3.2078,3319.7,3318.9,0.15066]
[1765377371801,3.2078,3319.1,3318.8,0.00268102]
[1765377372203,3.2078,3319.1,3317.9,3.2078]
[1765377372402,3.2078,3318.7,3317.9,3.2078]
[1765377372708,3.2078,3318.3,3317.3,1.49144]
[1765377373007,3.2078,3317.9,3317.3,1.49144]
[1765377373306,3.21129009,3317.9,3317.3,1.49523251]
[1765377373701,3.21129009,3317.9,3317.4,0.15073]
[1765377373911,0.00349009,3317.9,3317.7,3.2078]
[1765377374204,3.2078,3318.6,3318.2,0.15069]
[1765377374394,3.2078,3318.6,3317.7,3.2078]
[1765377375196,3.2078,3318.2,3317.7,3.2078]
[1765377375600,3.2078,3318.2,3317.3,1.34449251]
[1765377375802,3.2078,3318.2,3317.4,0.15073]
[1765377376203,3.2078,3317.8,3317.4,0.15073]
[1765377376608,3.2078,3318.2,3317.5,0.15073]
[1765377376807,3.2078,3318.2,3317.3,1.34449251]
[1765377377111,0.00277023,3318.6,3318.4,1.3407]
[1765377378505,0.00277023,3318.6,3318.4,1.49139]
[1765377379417,0.00451983,3318.8,3318.7,0.15067]
[1765377380423,0.00841958,3318.8,3318.7,0.15067]
[1765377380820,0.00841958,3318.8,3318.7,6.15067]
[1765377381211,0.00841958,3318.8,3318.6,3.2078]
[1765377381417,3.2078,3318.7,3318.4,1.3407]
[1765377381613,0.00841958,3318.8,3318.4,1.3407]
[1765377381821,0.00841958,3318.8,3318.5,0.15068]
[1765377382225,0.00841958,3318.8,3318.7,0.15067]
[1765377382425,1.958e-05,3318.8,3318.7,0.15067]
[1765377382720,3.2078,3319.9,3319.3,0.15064]
[1765377382922,3.2078,3319.9,3319.4,0.15064]
[1765377383119,3.2078,3319.9,3319.2,1.3407]
[1765377383622,2.14251385,3321.9,3319.2,1.3407]
[1765377383623,3.2078,3321.1,3320.0,1.3407]
[1765377383824,3.2078,3321.1,3320.7,0.15058]
[1765377383825,0.00451983,3320.9,3320.7,0.15058]
[1765377384426,0.00451983,3320.9,3320.4,3.2078]
[1765377384427,0.00451983,3320.9,3320.8,1.49128]
[1765377385416,0.00451983,3320.9,3320.4,3.2078]
[1765377385618,0.00451983,3320.9,3320.0,4.55076845]
[1765377385828,0.00451983,3320.9,3320.8,1.3407]
[1765377386029,0.00451983,3320.9,3320.4,3.2078]
[1765377386214,0.00451983,3320.9,3320.0,4.70137845]
[1765377386620,0.00451983,3320.9,3320.0,4.55076845]
[1765377386821,0.00451983,3320.9,3320.5,0.15059]
[1765377387528,0.00451983,3320.9,3320.6,0.15059]
[1765377389423,0.00451983,3320.9,3320.0,4.55076845]
[1765377389624,0.00451983,3320.9,3320.8,1.4118]
[1765377390430,0.00451983,3320.9,3320.0,4.55076845]
[1765377390627,0.00451983,3320.9,3320.0,4.70137845]
[1765377390829,0.00451983,3320.9,3320.1,0.15061]
[1765377391026,0.00451983,3320.9,3320.0,4.55076845]
[1765377391225,0.00451983,3320.9,3320.4,0.1506]
[1765377391527,0.00451983,3320.9,3320.0,4.55076845]
[1765377391528,3.2078,3320.6,3320.0,0.00226845]
[1765377391725,0.00451983,3320.9,3320.5,3.2078]
[1765377392124,0.00451983,3320.9,3320.8,1.3458]
[1765377393219,0.00451983,3320.9,3320.0,4.77247845]
[1765377393419,3.2078,3320.2,3320.0,0.00226845]
[1765377394625,3.2078,3320.2,3319.2,0.00451983]
[1765377394626,0.8463,3320.1,3319.2,0.00451983]
[1765377394834,3.2078,3319.5,3319.2,0.00451983]
[1765377395222,3.2078,3319.5,3319.4,1.4118]
[1765377395525,1.3815,3320.8,3319.4,1.4118]
[1765377395526,3.2078,3320.2,3319.4,1.4118]
[1765377395731,3.2078,3320.2,3319.4,1.41412314]
[1765377395933,3.2078,3320.2,3320.1,1.4118]
[1765377396126,3.2078,3320.2,3319.8,0.15062]
[1765377396322,0.00451983,3320.9,3320.8,1.4118]
[1765377396924,0.00451983,3320.9,3320.1,4.6196]
[1765377397122,0.00451983,3320.9,3320.8,1.4118]
[1765377398232,0.00451983,3320.9,3320.8,1.56236]
[1765377398427,5.38715219,3322.8,3320.9,2.31315219]
[1765377398428,3.2078,3322.3,3320.9,2.31315219]
[1765377398732,3.2078,3322.3,3320.8,7.4118]
[1765377398733,3.2078,3322.7,3322.0,3.2078]
[1765377398927,3.2078,3322.7,3322.0,3.35831]
[1765377399431,3.21574483,3322.7,3322.0,3.36540386]
[1765377400330,3.21574483,3322.7,3322.0,0.15760386]
[1765377400535,3.21574483,3322.7,3322.0,3.36540386]
[1765377401433,3.21574483,3322.7,3322.0,0.00709386]
[1765377401723,3.2078,3322.3,3322.0,0.00709386]
[1765377401931,3.21574483,3322.7,3322.0,0.00709386]
[1765377402330,3.2078,3322.1,3322.0,0.00709386]
[1765377402635,3.2078,3322.1,3321.3,3.2078]
[1765377403330,3.2078,3322.1,3321.3,3.35834]
[1765377403632,3.2078,3322.1,3321.4,0.00451983]
[1765377405525,3.2078,3321.6,3321.4,0.00451983]
[1765377406035,3.2078,3321.6,3320.1,1.4118]
[1765377406036,9.8986,3321.6,3320.1,1.4118]
[1765377406334,9.8986,3321.6,3320.1,4.6196]
[1765377406335,3.2078,3321.2,3320.1,4.6196]
[1765377406532,3.2078,3321.1,3320.3,0.15059]
[1765377406940,0.00451983,3321.0,3320.3,0.15059]
[1765377407129,0.00451983,3321.0,3320.3,0.15318756]
[1765377407332,0.00451983,3321.0,3320.7,3.2078]
[1765377408444,0.00451983,3321.0,3320.3,3.21039756]
[1765377408742,3.9637,3320.8,3320.3,0.00259756]
[1765377408941,3.2078,3320.4,3320.3,0.00259756]
[1765377409130,3.2078,3320.9,3320.3,0.00259756]
[1765377409534,0.00451983,3321.0,3320.8,1.56236]
[1765377409744,2.31315219,3322.1,3320.8,1.56236]
[1765377409745,3.2078,3321.8,3320.8,1.4118]
[1765377409946,3.2078,3321.8,3321.0,3.2078]
[1765377410537,3.2078,3321.8,3321.3,0.15054]
[1765377410945,3.2078,3321.8,3321.4,0.15054]
[1765377411235,0.00451983,3321.9,3321.8,0.15052]
[1765377411937,0.003425,3322.7,3322.3,0.15049]
[1765377412140,0.003425,3322.7,3322.4,4.77009]
[1765377412344,3.2078,3324.0,3322.6,2.31315219]
[1765377412533,4.66213385,3324.5,3322.4,4.6196]
[1765377412534,3.2078,3324.7,3323.4,3.2078]
[1765377412835,3.2078,3324.7,3323.2,1.4118]
[1765377412836,3.2078,3324.7,3323.8,3.2078]
[1765377413042,0.0045125,3324.4,3323.8,3.2078]
[1765377413541,3.2078,3324.3,3323.8,0.00235141]
[1765377414243,3.2078,3323.9,3323.8,0.00235141]
[1765377414547,3.2078,3323.9,3322.4,1.4118]
[1765377414746,3.2078,3323.4,3322.4,1.4118]
[1765377415244,3.2078,3322.9,3322.3,3.2078]
[1765377415442,3.2078,3322.9,3322.3,3.21083775]
[1765377415642,3.2078,3322.9,3322.3,3.21535025]
[1765377416743,3.2078,3323.4,3322.4,1.4118]
[1765377419241,3.2078,3323.4,3322.8,3.2078]
[1765377419547,3.2078,3323.9,3322.8,3.2078]
[1765377419946,3.2078,3323.9,3323.2,4.61185]
[1765377420335,3.2078,3323.9,3322.8,3.2078]
[1765377420543,3.2078,3324.3,3323.2,4.4614]
[1765377420739,5.52095219,3324.3,3323.2,3.2078]
[1765377420942,0.00811552,3324.4,3322.4,1.4118]
[1765377420943,3.2078,3323.4,3322.8,3.2078]
[1765377421252,0.00811552,3324.4,3323.3,3.2078]
[1765377421440,0.00811552,3324.4,3324.2,3.2078]
[1765377422344,0.00811552,3324.4,3324.0,0.0045125]
[1765377422648,0.00811552,3324.4,3324.0,4.4659125]
[1765377423241,3.2078,3325.8,3324.2,2.31315219]
[1765377423442,3.2078,3326.3,3325.7,3.2078]
[1765377423642,3.2078,3326.3,3325.3,3.2078]
[1765377423945,3.2078,3326.9,3326.2,3.2078]
[1765377424244,3.2078,3326.9,3326.2,3.21487647]
[1765377424245,0.00376216,3326.9,3326.2,3.21487647]
[1765377424447,0.00827466,3326.9,3326.7,3.2078]
[1765377424849,0.00827466,3326.9,3326.3,3.2078]
[1765377425249,3.21607466,3326.9,3326.3,3.2078]
[1765377425845,0.00827466,3326.9,3326.4,1.2536]
[1765377426146,0.00827466,3326.9,3326.3,3.2078]
[1765377426755,0.00827466,3326.9,3326.7,3.2078]
[1765377427156,0.00827466,3326.9,3326.3,3.2078]
[1765377428050,3.2078,3326.6,3326.2,0.00707647]
[1765377429548,0.00827466,3326.9,3326.2,3.21487647]
[1765377429748,0.00827466,3326.9,3326.6,3.2078]
[1765377431752,0.00827466,3326.9,3326.2,0.00707647]
[1765377431753,1.2185,3326.4,3326.2,0.00707647]
[1765377431953,3.2078,3326.3,3325.5,3.2078]
[1765377432258,5.52095219,3325.9,3325.5,3.2078]
[1765377432456,3.2078,3325.9,3325.5,3.2078]
[1765377432653,3.2078,3325.9,3325.0,3.2078]
[1765377432848,3.2078,3325.9,3325.1,0.0045125]
[1765377433056,2.31315219,3325.8,3325.1,0.0045125]
[1765377434057,3.2078,3325.9,3325.1,0.0045125]
[1765377435359,3.2078,3325.5,3325.1,0.0045125]
[1765377435753,3.2078,3325.5,3324.5,3.2078]
[1765377435953,4.4263,3324.8,3324.0,3.2078]
[1765377436362,3.2078,3324.9,3324.0,3.2078]
[1765377436561,3.2078,3325.3,3324.4,3.2078]
[1765377436763,3.2078,3325.3,3324.4,3.21127467]
[1765377436764,0.0045125,3325.2,3324.4,3.21127467]
[1765377437058,0.0045125,3325.2,3324.5,0.15039]
[1765377437261,0.0045125,3325.2,3325.0,3.2078]
[1765377437561,0.0045125,3325.2,3324.8,1.1808]
[1765377437858,0.0045125,3325.2,3325.0,3.2078]
[1765377438055,3.2078,3325.8,3325.0,3.2078]
[1765377438457,3.2078,3326.6,3325.8,0.15034]
[1765377438659,3.2078,3326.6,3326.1,3.2078]
[1765377439250,3.2078,3326.6,3326.0,0.0045125]
[1765377439454,3.2078,3326.2,3326.0,0.0045125]
[1765377439857,3.2078,3326.5,3326.0,0.0045125]
[1765377440251,0.0045125,3326.7,3326.0,0.0045125]
[1765377440451,3.2078,3326.5,3326.0,0.0045125]
[1765377440857,3.2078,3326.1,3326.0,0.0045125]
[1765377441664,3.93589377,3326.1,3326.0,0.0045125]
[1765377442050,3.2078,3326.1,3326.0,0.0045125]
[1765377444855,0.00376216,3326.9,3326.0,2.46799469]
[1765377445059,0.00376216,3326.9,3326.3,3.2078]
[1765377445356,0.00376216,3326.9,3326.4,1.1808]
[1765377445554,0.00376216,3326.9,3326.3,3.2078]
[1765377446456,0.00376216,3326.9,3326.0,0.0045125]
[1765377446457,3.53165219,3326.4,3326.0,0.0045125]
[1765377446655,3.53165219,3326.4,3324.6,0.15039]
[1765377446656,3.2078,3326.2,3325.3,3.2078]
[1765377446855,3.2078,3325.6,3324.5,3.2078]
[1765377447055,3.2078,3325.2,3324.5,3.2078]
[1765377447262,0.72995098,3325.1,3324.5,3.2078]
[1765377448161,0.72995098,3325.1,3324.6,1.2354]
[1765377448363,0.72995098,3325.1,3324.5,3.3582]
[1765377449560,2.31315219,3324.7,3323.7,3.35823]
[1765377449758,3.53238483,3324.6,3323.3,3.2078]
[1765377450064,3.2078,3324.0,3323.3,3.2078]
[1765377450267,0.72995098,3323.9,3323.3,3.2078]
[1765377450459,3.2078,3324.0,3323.3,3.35825]
[1765377450652,0.00311065,3324.0,3323.7,3.2078]
[1765377451252,0.00311065,3324.0,3323.7,4.4432]
[1765377451761,0.00311065,3324.0,3323.7,4.59363]
[1765377453067,0.00311065,3324.0,3323.9,0.15042]
[1765377453255,3.2078,3324.5,3324.2,0.15041]
[1765377453660,3.2078,3324.5,3323.7,4.4432]
[1765377454059,0.73315385,3324.4,3323.7,3.2078]
[1765377454262,0.73671363,3324.4,3323.7,3.2078]
[1765377454664,0.73671363,3324.4,3323.7,4.4432]
[1765377455464,0.00355978,3324.4,3323.7,4.4432]
[1765377455864,0.00355978,3324.4,3324.1,3.2078]
[1765377456067,0.00355978,3324.4,3324.0,3.2078]
[1765377457961,1.1923,3324.0,3323.3,0.0028002]
[1765377458158,3.2078,3323.4,3323.3,0.0028002]
[1765377460070,3.2078,3323.8,3323.3,0.0028002]
[1765377460270,0.75771349,3323.7,3323.3,0.0028002]
[1765377460975,3.2078,3323.8,3323.3,0.0028002]
[1765377461173,0.75776456,3323.7,3323.3,0.0028002]
[1765377462270,3.2078,3323.8,3323.3,0.0028002]
[1765377464375,3.2078,3323.4,3323.3,0.0028002]
[1765377464565,3.2078,3323.4,3322.3,3.2078]
[1765377464566,3.96515937,3323.4,3322.3,3.2078]
[1765377464771,3.2078,3322.8,3322.3,3.2078]
[1765377465170,0.75717135,3322.7,3322.3,3.2078]
[1765377465375,3.2078,3322.4,3321.8,3.2078]
[1765377465576,3.2078,3322.4,3321.8,3.21155921]
[1765377466074,3.2078,3321.9,3321.8,0.00375921]
[1765377466279,3.21042935,3321.9,3321.8,0.00375921]
[1765377471486,0.00262935,3321.9,3321.8,0.00375921]
[1765377471675,2.935e-05,3321.9,3321.8,6.00375921]
[1765377471875,2.935e-05,3321.9,3321.8,0.00375921]
[1765377472277,2.935e-05,3321.9,3321.8,6.00375921]
[1765377472483,3.2078,3322.3,3321.8,6.00375921]
[1765377472680,3.2078,3322.3,3321.8,0.00375921]
[1765377473083,3.2078,3322.3,3321.8,3.21155921]
[1765377473383,3.2078,3322.3,3322.2,3.2078]
[1765377473384,0.00355863,3322.3,3322.2,3.2078]
[1765377474982,3.2078,3322.8,3322.2,3.2078]
[1765377475185,3.2078,3322.8,3322.4,1.2354]
[1765377476080,0.00301501,3322.8,3322.6,3.2078]
[1765377476283,0.0045125,3323.2,3322.6,9.2078]
[1765377476483,1.25e-05,3323.2,3323.1,3.2078]
[1765377476880,3.2078,3323.9,3323.2,1.2354]
[1765377477074,3.2078,3325.3,3323.6,4.4432]
[1765377477279,3.21120596,3325.3,3324.9,3.2078]
[1765377477490,3.21120596,3325.3,3324.9,0.00281277]
[1765377478382,3.21120596,3325.3,3324.1,3.2078]
[1765377478584,1.0273,3324.8,3324.1,3.2078]
[1765377478993,1.0273,3324.8,3323.7,3.2078]
[1765377479287,3.2078,3324.9,3324.1,3.2078]
[1765377479590,3.2078,3324.9,3324.1,3.21079141]
[1765377481285,1.0273,3324.8,3324.1,3.21079141]
[1765377481590,0.75775002,3324.7,3324.1,3.21079141]
[1765377482181,3.21120596,3325.3,3324.3,1.0389]
[1765377482382,3.21120596,3325.3,3324.5,3.2078]
[1765377482584,3.2078,3324.9,3324.3,1.1893]
[1765377482787,0.00340596,3325.3,3324.6,3.2078]
[1765377483191,0.00340596,3325.3,3324.7,0.15039]
[1765377483487,0.00340596,3325.3,3324.8,0.15038]
[1765377483792,0.00340596,3325.3,3325.0,0.15037]
[1765377483977,0.00340596,3325.3,3325.2,0.15036]
[1765377484182,0.00340596,3325.3,3325.2,3.35816]
[1765377485283,6.00340596,3325.3,3324.5,3.2078]
[1765377485487,3.2078,3325.0,3324.5,3.2078]
[1765377485877,3.2078,3325.0,3324.1,0.00299141]
[1765377485878,3.2078,3324.6,3324.1,0.00299141]
[1765377488898,3.2078,3324.2,3323.0,0.15046]
[1765377489192,3.2078,3323.7,3323.0,0.15046]
[1765377489397,3.2123125,3323.7,3323.0,0.15046]
[1765377490095,3.2123125,3323.7,3323.0,0.15379544]
[1765377490394,0.0045125,3323.7,3323.3,3.35825]
[1765377490589,0.0045125,3323.7,3323.3,3.2078]
[1765377490996,0.0045125,3323.7,3323.5,0.15044]
[1765377491595,0.0045125,3323.7,3323.6,0.15044]
[1765377492283,0.0045125,3323.7,3323.3,3.2078]
[1765377493194,3.2078,3323.4,3323.0,0.00333544]
[1765377493590,1.0258,3323.2,3323.0,0.00333544]
[1765377493789,0.15047,3323.0,3321.4,0.15054]
[1765377494095,1.0258,3323.2,3322.0,0.15051]
[1765377494096,3.2078,3322.3,3322.0,0.15051]
[1765377494684,3.2113342,3322.3,3322.0,0.15357392]
[1765377495093,3.2113342,3322.3,3322.2,0.23116]
[1765377496194,3.2113342,3322.3,3322.2,0.38166]
[1765377497391,3.2113342,3322.3,3322.2,0.23116]
[1765377500408,0.0035342,3322.3,3322.2,3.58946]
[1765377500697,0.0035342,3322.3,3322.2,0.38166]
[1765377501493,0.0035342,3322.3,3322.2,0.23116]
[1765377501900,0.79420247,3322.3,3321.0,0.15055]
[1765377502197,3.2078,3321.6,3320.9,3.2078]
[1765377502404,3.2078,3321.2,3320.5,3.2078]
[1765377502594,1.0258,3321.5,3320.6,0.15057]
[1765377502799,0.0045125,3322.0,3320.6,0.15057]
[1765377502800,3.2078,3321.2,3320.6,0.15057]
[1765377503094,3.2078,3321.3,3320.6,0.15421125]
[1765377503291,3.2078,3321.7,3320.9,3.2078]
[1765377503496,3.2078,3321.7,3320.9,3.35836]
[1765377503691,3.2078,3321.7,3320.9,0.15056]
[1765377504504,3.2078,3321.7,3321.1,0.15055]
[1765377504905,3.2078,3321.7,3321.2,0.15055]
[1765377505103,3.2078,3321.7,3321.3,0.15054]
[1765377505301,0.0045125,3322.0,3321.4,3.35834]
[1765377505602,3.2078,3321.5,3320.7,0.15057]
[1765377505808,3.2078,3321.5,3320.6,3.21144125]
[1765377506193,1.0258,3321.6,3320.6,0.00364125]
[1765377506194,3.2078,3320.8,3320.6,0.00364125]
[1765377507200,4.2336,3320.8,3320.6,0.00364125]
[1765377507806,4.2336,3320.8,3319.3,3.2078]
[1765377508111,0.0045125,3320.4,3319.4,0.15062]
[1765377508308,0.0045125,3320.4,3320.3,3.35839]
[1765377508911,0.0045125,3320.4,3320.3,3.36157673]
[1765377509110,3.2078,3321.6,3320.6,0.15057]
[1765377509297,3.2078,3321.6,3320.9,0.15056]
[1765377509499,3.2078,3321.6,3321.0,0.15055]
[1765377509905,0.9909,3321.5,3320.8,3.2078]
[1765377510102,0.9954125,3321.5,3320.8,0.0045125]
[1765377510407,0.9954125,3321.5,3320.8,1.1207725]
[1765377510408,0.0045125,3321.5,3320.8,1.1207725]
[1765377510610,3.2078,3321.2,3320.8,0.1550725]
[1765377510907,0.9954125,3321.5,3320.8,0.1550725]
[1765377511607,3.3013,3320.9,3320.8,0.0045125]
[1765377514612,3.3013,3320.4,3320.3,0.00318673]
[1765377515005,3.3013,3320.4,3319.3,0.15063]
[1765377515203,3.2078,3319.7,3319.3,0.15063]
[1765377515412,3.2078,3320.3,3319.3,0.15063]
[1765377515615,0.0045125,3320.1,3319.3,0.15063]
[1765377515906,3.2078,3319.9,3319.3,0.15407232]
[1765377516509,3.3013,3319.4,3319.3,0.00344232]
[1765377517715,3.2078,3319.5,3319.3,0.00344232]
[1765377518117,3.2078,3319.5,3319.4,4.3401]
[1765377518316,3.2078,3320.0,3319.4,4.3401]
[1765377518714,3.3013,3319.4,3319.3,0.00344232]
[1765377520111,3.2078,3319.6,3319.3,0.00344232]
[1765377520315,1.6929,3319.4,3319.3,0.00344232]
[1765377520717,3.2078,3319.6,3319.3,0.00344232]
[1765377520718,3.2078,3319.6,3319.5,3.3744]
[1765377520915,3.2078,3319.6,3319.3,0.00344232]
[1765377521115,3.3013,3319.4,3319.3,0.00344232]
[1765377521609,3.2078,3319.6,3319.3,0.00344232]
[1765377521813,3.2078,3319.6,3319.5,1.6775]
[1765377522008,3.3013,3319.4,3319.3,0.00344232]
[1765377523414,4.09466783,3319.4,3319.3,0.00344232]
[1765377524715,3.2078,3319.6,3319.5,1.6775]
[1765377524922,5.69409705,3319.6,3319.3,0.00344232]
[1765377525117,4.9007,3319.6,3319.3,0.00344232]
[1765377525820,3.3013,3319.4,3319.3,0.00344232]
[1765377526120,4.12895563,3319.4,3319.3,0.00344232]
[1765377528120,5.73908948,3319.4,3319.3,0.00344232]
[1765377528318,5.73908948,3319.4,3317.9,2.31471745]
[1765377528319,3.3013,3317.8,3317.3,1.11642]
[1765377528523,3.2078,3317.6,3317.3,1.11642]
[1765377528715,0.82765563,3317.5,3317.4,3.3744]
[1765377529222,0.8312724,3317.5,3317.4,3.37772874]
[1765377529616,2.5241724,3317.5,3317.4,0.00332874]
[1765377529917,3.30491677,3317.5,3317.4,0.00332874]
[1765377530121,4.12036982,3317.5,3317.4,0.00332874]
[1765377530329,0.1508,3315.7,3313.3,0.1509]
[1765377530514,3.2078,3314.2,3313.5,0.1509]
[1765377530716,0.81545305,3314.1,3313.8,0.9657]
[1765377531025,1.6013094,3314.8,3313.8,0.9657]
[1765377531226,3.2078,3314.6,3313.8,2.70164268]
[1765377531425,3.2078,3314.6,3312.9,0.23682418]
[1765377531426,3.2078,3314.2,3312.9,0.23682418]
[1765377531622,3.2078,3313.8,3313.2,0.15091]
[1765377531820,4.98250898,3315.1,3313.6,0.9657]
[1765377531821,3.2078,3314.3,3313.6,0.9657]
[1765377532018,3.2078,3314.9,3314.4,0.9546]
[1765377532220,3.2078,3314.9,3314.4,1.10927105]
[1765377532522,3.2078,3315.3,3314.5,0.15085]
[1765377532725,0.81095781,3315.2,3314.5,0.15085]
[1765377533125,3.2078,3315.3,3314.5,6.0]
[1765377533321,3.2078,3315.7,3315.0,0.15083]
[1765377533521,0.78934621,3315.6,3315.0,0.15083]